fUSD/lending_fUSD_20240814
["ID","MTS","AMOUNT","RATE_DAILY","PERIOD"]
[334830603,1723605110848,-1149.19,0.00015342,2]
[334830604,1723605110858,-519.43,0.00015342,2]
[334830605,1723605110868,-816.63,0.00015342,2]
[334830606,1723605110877,-1338.21,0.00015342,2]
[334830607,1723605110886,-748.99,0.00015342,2]
[334830608,1723605110895,-500.0,0.00015342,2]
[334830609,1723605110904,-500.0,0.00015342,2]
[334830610,1723605110914,-699.54,0.00015342,2]
[334830611,1723605110923,-1022.75,0.00015342,2]
[334830612,1723605110934,-523.86,0.00015342,2]
[334830613,1723605110945,-500.0,0.00015342,2]
[334830614,1723605110955,-612.84,0.00015342,2]
[334830615,1723605110966,-500.0,0.00015342,2]
[334830616,1723605110976,-1197.98,0.00015342,2]
[334830617,1723605110987,-919.6,0.00015342,2]
[334830618,1723605110997,-1287.56,0.00015342,2]
[334830619,1723605111007,-500.0,0.00015342,2]
[334830620,1723605111017,-503.29,0.00015342,2]
[334830621,1723605111027,-500.0,0.00015342,2]
[334830622,1723605111037,-1236.66,0.00015342,2]
[334830623,1723605111047,-1706.6,0.00015342,2]
[334830624,1723605111057,-500.0,0.00015342,2]
[334830625,1723605111067,-727.3,0.00015342,2]
[334830626,1723605111076,-500.0,0.00015342,2]
[334830627,1723605111085,-536.46,0.00015342,2]
[334830628,1723605111095,-500.0,0.00015342,2]
[334830629,1723605111104,-721.37,0.00015342,2]
[334830630,1723605111115,-2182.15,0.00015342,2]
[334830631,1723605111125,-1786.37,0.00015342,2]
[334830632,1723605111136,-2427.03,0.00015342,2]
[334830633,1723605111145,-680.94,0.00015342,2]
[334830634,1723605111154,-500.0,0.00015342,2]
[334830635,1723605111163,-771.59,0.00015342,2]
[334830636,1723605111172,-1367.74,0.00015342,2]
[334830637,1723605111181,-500.0,0.00015342,2]
[334830638,1723605111190,-1950.59,0.00015342,2]
[334830639,1723605111200,-1130.15,0.00015342,2]
[334830640,1723605111209,-750.13,0.00015342,2]
[334830641,1723605111218,-1812.05,0.00015342,2]
[334830642,1723605111228,-500.0,0.00015342,2]
[334830643,1723605111237,-576.07,0.00015342,2]
[334830644,1723605111246,-1411.86,0.00015342,2]
[334830645,1723605111255,-500.0,0.00015342,2]
[334830646,1723605111265,-672.92,0.00015342,2]
[334830647,1723605111274,-2545.33,0.00015342,2]
[334830648,1723605111284,-500.0,0.00015342,2]
[334830649,1723605111293,-500.0,0.00015342,2]
[334830650,1723605111303,-500.0,0.00015342,2]
[334830651,1723605111312,-500.0,0.00015342,2]
[334830652,1723605111322,-500.0,0.00015342,2]
[334830653,1723605111331,-541.3,0.00015342,2]
[334830654,1723605111342,-500.0,0.00015342,2]
[334830655,1723605111353,-872.09,0.00015342,2]
[334830656,1723605111366,-6288.73,0.00015342,2]
[334830657,1723605111375,-500.0,0.00015342,2]
[334830658,1723605111385,-500.0,0.00015342,2]
[334830659,1723605111395,-500.0,0.00015342,2]
[334830660,1723605111404,-1035.1,0.00015342,2]
[334830661,1723605111413,-500.0,0.00015342,2]
[334830662,1723605111424,-1340.06,0.00015342,2]
[334830663,1723605111434,-500.0,0.00015342,2]
[334830664,1723605111444,-1609.25,0.00015342,2]
[334830665,1723605111453,-2362.09,0.00015342,2]
[334830666,1723605111462,-500.0,0.00015342,2]
[334830667,1723605111471,-1034.45,0.00015342,2]
[334830668,1723605111480,-902.63,0.00015342,2]
[334830669,1723605111489,-557.88,0.00015342,2]
[334830670,1723605111499,-943.38,0.00015342,2]
[334830671,1723605111507,-3295.82,0.00015342,2]
[334830672,1723605111516,-500.0,0.00015342,2]
[334830673,1723605111525,-995.76,0.00015342,2]
[334830674,1723605111534,-500.0,0.00015342,2]
[334830675,1723605111544,-500.0,0.00015342,2]
[334830676,1723605111554,-500.0,0.00015342,2]
[334830677,1723605111563,-756.18,0.00015342,2]
[334830678,1723605111573,-500.0,0.00015342,2]
[334830679,1723605111582,-681.83,0.00015342,2]
[334830680,1723605111592,-1346.5,0.00015342,2]
[334830681,1723605111601,-1093.21,0.00015342,2]
[334830682,1723605111612,-1173.15,0.00015342,2]
[334830683,1723605111621,-1976.94,0.00015342,2]
[334830684,1723605111630,-675.4,0.00015342,2]
[334830685,1723605111639,-500.0,0.00015342,2]
[334830686,1723605111649,-500.0,0.00015342,2]
[334830687,1723605111658,-533.76,0.00015342,2]
[334830688,1723605111667,-817.86,0.00015342,2]
[334830689,1723605111677,-736.58,0.00015342,2]
[334830690,1723605111689,-1591.01,0.00015342,2]
[334830691,1723605111698,-500.0,0.00015342,2]
[334830692,1723605111708,-500.0,0.00015342,2]
[334830693,1723605111717,-1823.18,0.00015342,2]
[334830694,1723605111726,-1560.86,0.00015342,2]
[334830695,1723605111736,-500.0,0.00015342,2]
[334830696,1723605111746,-500.0,0.00015342,2]
[334830697,1723605111755,-500.0,0.00015342,2]
[334830698,1723605111765,-868.55,0.00015342,2]
[334830699,1723605111774,-703.88,0.00015342,2]
[334830700,1723605111785,-549.74,0.00015342,2]
[334830701,1723605111794,-873.62,0.00015342,2]
[334830702,1723605111803,-500.0,0.00015342,2]
[334830703,1723605111813,-1218.76,0.00015342,2]
[334830704,1723605111823,-948.65,0.00015342,2]
[334830705,1723605111834,-530.56,0.00015342,2]
[334830706,1723605111844,-500.0,0.00015342,2]
[334830707,1723605111853,-500.0,0.00015342,2]
[334830708,1723605111865,-1962.68,0.00015342,2]
[334830709,1723605111874,-3761.99,0.00015342,2]
[334830710,1723605111884,-500.0,0.00015342,2]
[334830711,1723605111893,-1100.79,0.00015342,2]
[334830712,1723605111902,-519.9,0.00015342,2]
[334830713,1723605111911,-1091.85,0.00015342,2]
[334830714,1723605111921,-500.0,0.00015342,2]
[334830715,1723605111931,-500.0,0.00015342,2]
[334830716,1723605111940,-1899.15,0.00015342,2]
[334830717,1723605111950,-591.0,0.00015342,2]
[334830718,1723605111959,-500.0,0.00015342,2]
[334830719,1723605111969,-2902.42,0.00015342,2]
[334830720,1723605111978,-681.58,0.00015342,2]
[334830721,1723605111987,-979.62,0.00015342,2]
[334830722,1723605111996,-756.88,0.00015342,2]
[334830723,1723605112006,-522.04,0.00015342,2]
[334830724,1723605112015,-1101.29,0.00015342,2]
[334830725,1723605112024,-500.0,0.00015342,2]
[334830726,1723605112035,-1108.67,0.00015342,2]
[334830727,1723605112045,-506.72578247,0.00015342,2]
[334830728,1723605112054,-500.0,0.00015342,2]
[334830729,1723605112064,-1192.85,0.00015342,2]
[334830730,1723605112074,-500.0,0.00015342,2]
[334830731,1723605112083,-1671.63,0.00015342,2]
[334830732,1723605112092,-4757.69,0.00015342,2]
[334830733,1723605112103,-738.15,0.00015342,2]
[334830734,1723605112112,-817.28,0.00015342,2]
[334830735,1723605112122,-500.0,0.00015342,2]
[334830736,1723605112131,-1634.26,0.00015342,2]
[334830737,1723605112141,-1376.93,0.00015342,2]
[334830738,1723605112151,-500.0,0.00015342,2]
[334830739,1723605112160,-1110.82,0.00015342,2]
[334830740,1723605112171,-500.0,0.00015342,2]
[334830741,1723605112182,-18059.26,0.00015342,2]
[334830742,1723605112192,-2339.81,0.00015342,2]
[334830743,1723605112202,-815.45,0.00015342,2]
[334830744,1723605112212,-1022.58,0.00015342,2]
[334830745,1723605112221,-779.0,0.00015342,2]
[334830746,1723605112230,-1739.76,0.00015342,2]
[334830747,1723605112240,-500.0,0.00015342,2]
[334830748,1723605112249,-232.43486435,0.00015342,2]
[334830749,1723605112259,-716.15,0.00015342,2]
[334830750,1723605112268,-500.0,0.00015342,2]
[334830751,1723605112278,-824.5,0.00015342,2]
[334830752,1723605112288,-611.72,0.00015342,2]
[334830753,1723605112298,-500.0,0.00015342,2]
[334830754,1723605112308,-500.0,0.00015342,2]
[334830755,1723605112317,-564.02,0.00015342,2]
[334830756,1723605112326,-573.09,0.00015342,2]
[334830757,1723605112336,-1688.94,0.00015342,2]
[334830758,1723605112349,-500.0,0.00015342,2]
[334830759,1723605112359,-754.52,0.00015342,2]
[334830760,1723605112369,-500.0,0.00015342,2]
[334830761,1723605112378,-500.0,0.00015342,2]
[334830762,1723605112389,-2125.28,0.00015342,2]
[334830763,1723605112399,-500.0,0.00015342,2]
[334830764,1723605112408,-862.91,0.00015342,2]
[334830765,1723605112420,-1627.71,0.00015342,2]
[334830766,1723605112429,-726.59,0.00015342,2]
[334830767,1723605112439,-5975.91,0.00015342,2]
[334830768,1723605112448,-500.0,0.00015342,2]
[334830769,1723605112458,-1414.92,0.00015342,2]
[334830770,1723605112467,-592.73,0.00015342,2]
[334830771,1723605112478,-902.13,0.00015342,2]
[334830772,1723605112488,-2088.05,0.00015342,2]
[334830773,1723605112498,-5374.81,0.00015342,2]
[334830774,1723605112507,-1387.45,0.00015342,2]
[334830775,1723605112517,-768.36,0.00015342,2]
[334830776,1723605112526,-3876.74,0.00015342,2]
[334830777,1723605112536,-500.0,0.00015342,2]
[334830778,1723605112546,-500.0,0.00015342,2]
[334830779,1723605112555,-1245.3,0.00015342,2]
[334830780,1723605112566,-618.4,0.00015342,2]
[334830781,1723605112575,-2815.43,0.00015342,2]
[334830782,1723605112584,-3826.76,0.00015342,2]
[334830783,1723605112593,-500.0,0.00015342,2]
[334830784,1723605112603,-807.19,0.00015342,2]
[334830785,1723605112612,-2271.26,0.00015342,2]
[334830786,1723605112623,-855.92,0.00015342,2]
[334830787,1723605112633,-7857.05,0.00015342,2]
[334830788,1723605112643,-1088.18,0.00015342,2]
[334830789,1723605112652,-500.0,0.00015342,2]
[334830790,1723605112662,-752.58,0.00015342,2]
[334830791,1723605112672,-500.0,0.00015342,2]
[334830792,1723605112682,-3025.79,0.00015342,2]
[334830793,1723605112692,-2164.19,0.00015342,2]
[334830794,1723605112702,-3869.55,0.00015342,2]
[334830795,1723605112712,-892.24,0.00015342,2]
[334830796,1723605112722,-500.0,0.00015342,2]
[334830797,1723605112731,-500.0,0.00015342,2]
[334830798,1723605112741,-662.61,0.00015342,2]
[334830799,1723605112750,-916.14,0.00015342,2]
[334830800,1723605112760,-795.16,0.00015342,2]
[334830801,1723605112770,-26609.07,0.00015342,2]
[334830802,1723605112779,-500.0,0.00015342,2]
[334830803,1723605112788,-3398.55,0.00015342,2]
[334830804,1723605112798,-22218.98,0.00015342,2]
[334830805,1723605112807,-2542.25,0.00015342,2]
[334830806,1723605112817,-1245.59,0.00015342,2]
[334830807,1723605112827,-1016.07,0.00015342,2]
[334830808,1723605112837,-500.0,0.00015342,2]
[334830809,1723605112846,-2255.75,0.00015342,2]
[334830810,1723605112856,-500.0,0.00015342,2]
[334830811,1723605112867,-500.0,0.00015342,2]
[334830812,1723605112877,-1410.58,0.00015342,2]
[334830813,1723605112887,-500.0,0.00015342,2]
[334830814,1723605112896,-941.19,0.00015342,2]
[334830815,1723605112906,-500.0,0.00015342,2]
[334830816,1723605112916,-8200.38,0.00015342,2]
[334830817,1723605112925,-500.0,0.00015342,2]
[334830818,1723605112935,-500.0,0.00015342,2]
[334830819,1723605112944,-5134.83,0.00015342,2]
[334830820,1723605112954,-242.7991305,0.00015342,2]
[334830821,1723605112964,-1475.56,0.00015342,2]
[334830822,1723605112974,-500.0,0.00015342,2]
[334830823,1723605112983,-1590.03,0.00015342,2]
[334830824,1723605112993,-500.0,0.00015342,2]
[334830825,1723605113002,-500.0,0.00015342,2]
[334830826,1723605113011,-2005.17,0.00015342,2]
[334830827,1723605113020,-500.0,0.00015342,2]
[334830828,1723605113030,-245.36007446,0.00015342,2]
[334830829,1723605113039,-500.0,0.00015342,2]
[334830830,1723605113049,-500.0,0.00015342,2]
[334830831,1723605113060,-598.02,0.00015342,2]
[334830832,1723605113069,-12984.39,0.00015342,2]
[334830833,1723605113078,-7951.86,0.00015342,2]
[334830834,1723605113087,-1032.44,0.00015342,2]
[334830835,1723605113203,-739.61,0.00015342,2]
[334830836,1723605113218,-2078.47,0.00015342,2]
[334830837,1723605113228,-500.0,0.00015342,2]
[334830838,1723605113237,-3476.41,0.00015342,2]
[334830839,1723605113246,-39703.17,0.00015342,2]
[334830840,1723605113255,-18895.17,0.00015342,2]
[334830841,1723605113265,-2008.56,0.00015342,2]
[334830842,1723605113274,-500.0,0.00015342,2]
[334830843,1723605113283,-500.0,0.00015342,2]
[334830844,1723605113293,-960.08,0.00015342,2]
[334830845,1723605113302,-16246.9,0.00015342,2]
[334830846,1723605113311,-500.0,0.00015342,2]
[334830847,1723605113321,-23755.04,0.00015342,2]
[334830848,1723605113331,-500.0,0.00015342,2]
[334830849,1723605113343,-1931.43,0.00015342,2]
[334830850,1723605113353,-596.55,0.00015342,2]
[334830851,1723605113363,-1617.8,0.00015342,2]
[334830852,1723605113375,-1313.03,0.00015342,2]
[334830853,1723605113390,-500.0,0.00015342,2]
[334830854,1723605113400,-7013.22,0.00015342,2]
[334830855,1723605113410,-5544.75,0.00015342,2]
[334830856,1723605113422,-500.0,0.00015342,2]
[334830857,1723605113432,-498.47965495,0.00015342,2]
[334830858,1723605113442,-502.28,0.00015342,2]
[334830859,1723605113451,-13355.74,0.00015342,2]
[334830860,1723605113460,-560.1,0.00015342,2]
[334830861,1723605113470,-500.0,0.00015342,2]
[334830862,1723605113480,-500.0,0.00015342,2]
[334830863,1723605113489,-500.0,0.00015342,2]
[334830864,1723605113498,-2441.9,0.00015342,2]
[334830865,1723605113509,-2489.4,0.00015342,2]
[334830866,1723605113519,-1240.21,0.00015342,2]
[334830867,1723605113528,-1135.86,0.00015342,2]
[334830868,1723605113538,-500.0,0.00015342,2]
[334830869,1723605113547,-500.0,0.00015342,2]
[334830870,1723605113558,-500.0,0.00015342,2]
[334830871,1723605113568,-500.0,0.00015342,2]
[334830872,1723605113577,-4723.94,0.00015342,2]
[334830873,1723605113587,-824.22,0.00015342,2]
[334830874,1723605113597,-4121.71,0.00015342,2]
[334830875,1723605113606,-500.0,0.00015342,2]
[334830876,1723605113616,-500.0,0.00015342,2]
[334830877,1723605113625,-500.0,0.00015342,2]
[334830878,1723605113634,-1725.18,0.00015342,2]
[334830879,1723605113646,-500.0,0.00015342,2]
[334830880,1723605113656,-500.0,0.00015342,2]
[334830881,1723605113665,-500.0,0.00015342,2]
[334830882,1723605113675,-500.0,0.00015342,2]
[334830883,1723605113684,-678.73,0.00015342,2]
[334830884,1723605113694,-1375.35,0.00015342,2]
[334830885,1723605113704,-500.0,0.00015342,2]
[334830886,1723605113714,-500.0,0.00015342,2]
[334830887,1723605113724,-7442.74,0.00015342,2]
[334830888,1723605113734,-990.54,0.00015342,2]
[334830889,1723605113745,-895.16,0.00015342,2]
[334830890,1723605113755,-14963.69,0.00015342,2]
[334830891,1723605113764,-1429.94,0.00015342,2]
[334830892,1723605113774,-962.78,0.00015342,2]
[334830893,1723605113784,-500.0,0.00015342,2]
[334830894,1723605113794,-5404.54,0.00015342,2]
[334830895,1723605113804,-421.03165938,0.00015342,2]
[334830896,1723605113814,-1416.37,0.00015342,2]
[334830897,1723605113823,-500.0,0.00015342,2]
[334830898,1723605113834,-3072.29,0.00015342,2]
[334830899,1723605113843,-500.0,0.00015342,2]
[334830900,1723605113853,-996.29,0.00015342,2]
[334830901,1723605113864,-2553.52,0.00015342,2]
[334830902,1723605113874,-1865.83,0.00015342,2]
[334830903,1723605113884,-862.29,0.00015342,2]
[334830904,1723605113893,-1066.91,0.00015342,2]
[334830905,1723605113903,-10401.13,0.00015342,2]
[334830906,1723605113912,-708.61,0.00015342,2]
[334830907,1723605113923,-500.0,0.00015342,2]
[334830908,1723605113932,-4853.34,0.00015342,2]
[334830909,1723605113941,-500.0,0.00015342,2]
[334830910,1723605113951,-2646.9,0.00015342,2]
[334830911,1723605113961,-500.0,0.00015342,2]
[334830912,1723605113970,-500.0,0.00015342,2]
[334830913,1723605113979,-500.0,0.00015342,2]
[334830914,1723605113989,-500.0,0.00015342,2]
[334830915,1723605113998,-8054.04,0.00015342,2]
[334830916,1723605114007,-4502.45,0.00015342,2]
[334830917,1723605114017,-1513.43,0.00015342,2]
[334830918,1723605114026,-3569.57,0.00015342,2]
[334830919,1723605114036,-1672.01,0.00015342,2]
[334830920,1723605114045,-1382.21,0.00015342,2]
[334830921,1723605114055,-500.0,0.00015342,2]
[334830922,1723605114065,-500.0,0.00015342,2]
[334830923,1723605114075,-500.0,0.00015342,2]
[334830924,1723605114084,-30978.45,0.00015342,2]
[334830925,1723605114094,-808.08,0.00015342,2]
[334830926,1723605114103,-1117.17,0.00015342,2]
[334830927,1723605114112,-500.0,0.00015342,2]
[334830928,1723605114122,-1667.3,0.00015342,2]
[334830929,1723605114131,-2412.04,0.00015342,2]
[334830930,1723605114141,-9957.53,0.00015342,2]
[334830931,1723605114150,-541.43,0.00015342,2]
[334830932,1723605114159,-1421.86,0.00015342,2]
[334830933,1723605114169,-1350.79,0.00015342,2]
[334830934,1723605114178,-3315.49,0.00015342,2]
[334830935,1723605114187,-500.0,0.00015342,2]
[334830936,1723605114198,-5365.68,0.00015342,2]
[334830937,1723605114208,-1559.83,0.00015342,2]
[334830938,1723605114217,-500.0,0.00015342,2]
[334830939,1723605114227,-500.0,0.00015342,2]
[334830940,1723605114237,-5871.12,0.00015342,2]
[334830941,1723605114246,-1637.79,0.00015342,2]
[334830942,1723605114260,-500.0,0.00015342,2]
[334830943,1723605114271,-1965.79,0.00015342,2]
[334830944,1723605114281,-500.0,0.00015342,2]
[334830945,1723605114291,-1378.04,0.00015342,2]
[334830946,1723605114301,-502.43516174,0.00015342,2]
[334830947,1723605114311,-1616.8,0.00015342,2]
[334830948,1723605114321,-3530.55,0.00015342,2]
[334830949,1723605114331,-1964.9,0.00015342,2]
[334830950,1723605114343,-500.0,0.00015342,2]
[334830951,1723605114354,-500.0,0.00015342,2]
[334830952,1723605114364,-523.48,0.00015342,2]
[334830953,1723605114375,-500.0,0.00015342,2]
[334830954,1723605114385,-995.8,0.00015342,2]
[334830955,1723605114395,-523.86120317,0.00015342,2]
[334830956,1723605114406,-1158.06,0.00015342,2]
[334830957,1723605114416,-500.0,0.00015342,2]
[334830958,1723605114427,-1771.71,0.00015342,2]
[334830959,1723605114437,-2095.59,0.00015342,2]
[334830960,1723605114447,-1058.49,0.00015342,2]
[334830961,1723605114457,-500.0,0.00015342,2]
[334830962,1723605114466,-500.0,0.00015342,2]
[334830963,1723605114476,-500.0,0.00015342,2]
[334830964,1723605114486,-5450.64,0.00015342,2]
[334830965,1723605114496,-980.96,0.00015342,2]
[334830966,1723605114506,-1436.17,0.00015342,2]
[334830967,1723605114516,-2445.12,0.00015342,2]
[334830968,1723605114526,-4063.03,0.00015342,2]
[334830969,1723605114536,-802.79,0.00015342,2]
[334830970,1723605114546,-500.0,0.00015342,2]
[334830971,1723605114556,-500.0,0.00015342,2]
[334830972,1723605114565,-1957.25,0.00015342,2]
[334830973,1723605114575,-821.33,0.00015342,2]
[334830974,1723605114585,-476.04732522,0.00015342,2]
[334830975,1723605114595,-7067.94,0.00015342,2]
[334830976,1723605114605,-2774.43,0.00015342,2]
[334830977,1723605114615,-500.0,0.00015342,2]
[334830978,1723605114625,-500.0,0.00015342,2]
[334830979,1723605114635,-500.0,0.00015342,2]
[334830980,1723605114645,-1772.9,0.00015342,2]
[334830981,1723605114655,-480.62542789,0.00015342,2]
[334830982,1723605114665,-2215.88,0.00015342,2]
[334830983,1723605114675,-4957.02,0.00015342,2]
[334830984,1723605114685,-500.0,0.00015342,2]
[334830985,1723605114695,-507.11722279,0.00015342,2]
[334830986,1723605114705,-2209.2,0.00015342,2]
[334830987,1723605114715,-500.0,0.00015342,2]
[334830988,1723605114724,-500.0,0.00015342,2]
[334830989,1723605114735,-3061.51,0.00015342,2]
[334830990,1723605114744,-1481.57,0.00015342,2]
[334830991,1723605114754,-3686.74,0.00015342,2]
[334830992,1723605114764,-500.0,0.00015342,2]
[334830993,1723605114773,-500.0,0.00015342,2]
[334830994,1723605114783,-500.0,0.00015342,2]
[334830995,1723605114793,-500.0,0.00015342,2]
[334830996,1723605114803,-6552.26,0.00015342,2]
[334830997,1723605114813,-10224.05,0.00015342,2]
[334830998,1723605114823,-555.50071451,0.00015342,2]
[334830999,1723605114832,-5926.55,0.00015342,2]
[334831000,1723605114842,-2121.42,0.00015342,2]
[334831001,1723605114852,-1373.93,0.00015342,2]
[334831002,1723605114862,-500.0,0.00015342,2]
[334831003,1723605114874,-1097.71,0.00015342,2]
[334831004,1723605114884,-607.8,0.00015342,2]
[334831005,1723605114894,-3557.64,0.00015342,2]
[334831006,1723605114904,-500.0,0.00015342,2]
[334831007,1723605114914,-2009.46,0.00015342,2]
[334831008,1723605114924,-613.33,0.00015342,2]
[334831009,1723605114933,-500.0,0.00015342,2]
[334831010,1723605114944,-3282.55,0.00015342,2]
[334831011,1723605114953,-2903.06,0.00015342,2]
[334831012,1723605114963,-2177.71,0.00015342,2]
[334831013,1723605114973,-500.0,0.00015342,2]
[334831014,1723605114982,-982.92,0.00015342,2]
[334831015,1723605114992,-19581.8,0.00015342,2]
[334831016,1723605115002,-500.0,0.00015342,2]
[334831017,1723605115011,-901.82,0.00015342,2]
[334831018,1723605115021,-528.89358948,0.00015342,2]
[334831019,1723605115031,-500.0,0.00015342,2]
[334831020,1723605115040,-645.39,0.00015342,2]
[334831021,1723605115050,-503.71,0.00015342,2]
[334831022,1723605115060,-500.0,0.00015342,2]
[334831023,1723605115070,-1937.79,0.00015342,2]
[334831024,1723605115080,-559.53,0.00015342,2]
[334831025,1723605115090,-14794.65,0.00015342,2]
[334831026,1723605115099,-505.44,0.00015342,2]
[334831027,1723605115109,-500.0,0.00015342,2]
[334831028,1723605115120,-6442.8,0.00015342,2]
[334831029,1723605115131,-646.11,0.00015342,2]
[334831030,1723605115141,-4533.79,0.00015342,2]
[334831031,1723605115151,-500.0,0.00015342,2]
[334831032,1723605115162,-500.0,0.00015342,2]
[334831033,1723605115173,-1262.87,0.00015342,2]
[334831034,1723605115184,-921.69,0.00015342,2]
[334831035,1723605115195,-500.0,0.00015342,2]
[334831036,1723605115206,-500.0,0.00015342,2]
[334831037,1723605115217,-3002.74,0.00015342,2]
[334831038,1723605115227,-3535.51,0.00015342,2]
[334831039,1723605115238,-7782.05,0.00015342,2]
[334831040,1723605115248,-512.88670999,0.00015342,2]
[334831041,1723605115259,-500.0,0.00015342,2]
[334831042,1723605115269,-617.55,0.00015342,2]
[334831043,1723605115280,-1681.03,0.00015342,2]
[334831044,1723605115290,-5884.62,0.00015342,2]
[334831045,1723605115299,-1212.09,0.00015342,2]
[334831046,1723605115309,-1178.67,0.00015342,2]
[334831047,1723605115319,-2997.53,0.00015342,2]
[334831048,1723605115328,-500.0,0.00015342,2]
[334831049,1723605115338,-1667.2,0.00015342,2]
[334831050,1723605115351,-13353.51,0.00015342,2]
[334831051,1723605115361,-5572.93,0.00015342,2]
[334831052,1723605115372,-3987.19,0.00015342,2]
[334831053,1723605115383,-3939.64,0.00015342,2]
[334831054,1723605115736,-6308.52,0.00015342,2]
[334831055,1723605115750,-19005.59,0.00015342,2]
[334831056,1723605115760,-500.0,0.00015342,2]
[334831057,1723605115771,-500.0,0.00015342,2]
[334831058,1723605115780,-500.0,0.00015342,2]
[334831059,1723605115791,-1888.59,0.00015342,2]
[334831060,1723605115801,-500.0,0.00015342,2]
[334831061,1723605115810,-4079.03,0.00015342,2]
[334831062,1723605115820,-2797.42,0.00015342,2]
[334831063,1723605115829,-500.0,0.00015342,2]
[334831064,1723605115839,-430.37665236,0.00015342,2]
[334831065,1723605115848,-644.38,0.00015342,2]
[334831066,1723605115858,-500.0,0.00015342,2]
[334831067,1723605115868,-999.48,0.00015342,2]
[334831068,1723605115878,-500.0,0.00015342,2]
[334831069,1723605115888,-4551.83,0.00015342,2]
[334831070,1723605115897,-500.0,0.00015342,2]
[334831071,1723605115907,-1084.39,0.00015342,2]
[334831072,1723605115916,-7815.54,0.00015342,2]
[334831073,1723605115926,-510.25441837,0.00015342,2]
[334831074,1723605115936,-500.0,0.00015342,2]
[334831075,1723605115945,-7759.78,0.00015342,2]
[334831076,1723605115955,-1415.9,0.00015342,2]
[334831077,1723605115965,-612.77477099,0.00015342,2]
[334831078,1723605115975,-6685.67,0.00015342,2]
[334831079,1723605115984,-500.0,0.00015342,2]
[334831080,1723605115994,-500.0,0.00015342,2]
[334831081,1723605116003,-1701.31,0.00015342,2]
[334831082,1723605116013,-4953.62,0.00015342,2]
[334831083,1723605116022,-500.0,0.00015342,2]
[334831084,1723605116033,-1637.32,0.00015342,2]
[334831085,1723605116042,-1938.51,0.00015342,2]
[334831086,1723605116051,-1229.49,0.00015342,2]
[334831087,1723605116061,-504.88103231,0.00015342,2]
[334831088,1723605116070,-729.12,0.00015342,2]
[334831089,1723605116080,-500.0,0.00015342,2]
[334831090,1723605116089,-500.0,0.00015342,2]
[334831091,1723605116098,-500.0,0.00015342,2]
[334831092,1723605116108,-5524.35,0.00015342,2]
[334831093,1723605116118,-746.42,0.00015342,2]
[334831094,1723605116128,-500.0,0.00015342,2]
[334831095,1723605116137,-1241.19,0.00015342,2]
[334831096,1723605116147,-1084.25,0.00015342,2]
[334831097,1723605116157,-23349.91,0.00015342,2]
[334831098,1723605116166,-4711.28,0.00015342,2]
[334831099,1723605116176,-959.78,0.00015342,2]
[334831100,1723605116185,-1166.89,0.00015342,2]
[334831101,1723605116195,-500.0,0.00015342,2]
[334831102,1723605116204,-500.0,0.00015342,2]